bitfinex/quotes_BTCUSD_20240721
["timestamp","ask_amount","ask_price","bid_price","bid_amount"]
[1721575133024,1.88546327,67232.0,67231.0,0.002]
[1721575133251,1.92861624,67232.0,67231.0,0.002]
[1721575133574,1.94261624,67232.0,67231.0,0.002]
[1721575134330,1.78826667,67232.0,67231.0,0.002]
[1721575134530,1.77426667,67232.0,67231.0,0.002]
[1721575135587,1.78826667,67232.0,67231.0,0.002]
[1721575136643,2.08574367,67232.0,67231.0,0.002]
[1721575136879,1.64646667,67232.0,67231.0,0.002]
[1721575137129,1.46676667,67232.0,67231.0,0.002]
[1721575137979,1.62111624,67232.0,67231.0,0.002]
[1721575139444,1.73230931,67232.0,67231.0,0.002]
[1721575140296,1.99220931,67232.0,67231.0,0.002]
[1721575140504,1.88101624,67232.0,67231.0,0.002]
[1721575142344,1.46676667,67232.0,67231.0,0.002]
[1721575146758,1.46676667,67232.0,67231.0,0.1505]
[1721575147130,1.46676667,67232.0,67231.0,0.002]
[1721575148481,1.60034931,67232.0,67231.0,0.002]
[1721575149291,1.46676667,67232.0,67231.0,0.002]
[1721575149708,1.62111624,67232.0,67231.0,0.002]
[1721575151125,1.46676667,67232.0,67231.0,0.002]
[1721575153379,1.77016667,67232.0,67231.0,0.002]
[1721575153591,1.04126,67226.0,67225.0,0.009207]
[1721575153797,1.29564174,67226.0,67225.0,0.009207]
[1721575153996,1.43719395,67226.0,67225.0,0.009207]
[1721575155012,1.45119395,67226.0,67225.0,0.009207]
[1721575155241,1.46519395,67226.0,67225.0,0.009207]
[1721575155573,1.33135563,67226.0,67225.0,0.009207]
[1721575155794,1.46518762,67226.0,67225.0,0.009207]
[1721575157202,1.33135563,67226.0,67225.0,0.009207]
[1721575157720,1.46518762,67226.0,67225.0,0.009207]
[1721575158917,1.33135563,67226.0,67225.0,0.009207]
[1721575159348,1.39098063,67226.0,67225.0,0.009207]
[1721575160170,1.52481501,67226.0,67225.0,0.009207]
[1721575160380,1.39098063,67226.0,67225.0,0.009207]
[1721575162424,1.39098063,67226.0,67221.0,0.002]
[1721575162425,1.041323,67222.0,67221.0,0.002]
[1721575162644,1.19570474,67222.0,67221.0,0.002]
[1721575162855,1.30342015,67222.0,67221.0,0.002]
[1721575163276,1.67854115,67222.0,67221.0,0.002]
[1721575163679,1.69254115,67222.0,67221.0,0.002]
[1721575163886,1.61494115,67222.0,67221.0,0.002]
[1721575164294,1.75529072,67222.0,67221.0,0.002]
[1721575165324,1.76929072,67222.0,67221.0,0.002]
[1721575165533,2.01469072,67222.0,67221.0,0.002]
[1721575166568,2.02869072,67222.0,67221.0,0.002]
[1721575166987,1.495625,67218.0,67217.0,0.009207]
[1721575167193,1.495625,67218.0,67216.0,0.0153251]
[1721575167195,0.603014,67217.0,67216.0,0.0153251]
[1721575167404,1.87435064,67217.0,67216.0,0.0153251]
[1721575167608,2.17189364,67217.0,67216.0,0.0153251]
[1721575167816,2.20979547,67217.0,67216.0,0.01224168]
[1721575168245,1.339042,67212.0,67201.0,0.0636]
[1721575168499,1.77312374,67212.0,67201.0,0.0636]
[1721575168704,2.01333262,67212.0,67201.0,0.0636]
[1721575168917,2.40177462,67212.0,67201.0,0.0636]
[1721575169754,2.24742505,67212.0,67201.0,0.0636]
[1721575169959,2.26142505,67212.0,67201.0,0.0636]
[1721575170385,2.27542505,67212.0,67201.0,0.0636]
[1721575170591,2.29098388,67212.0,67201.0,0.0636]
[1721575171785,2.18978388,67212.0,67202.0,0.05]
[1721575171993,2.18978388,67212.0,67201.0,0.002]
[1721575171994,2.02582343,67212.0,67211.0,0.075707]
[1721575172202,1.04951188,67212.0,67211.0,0.075707]
[1721575173032,1.16083242,67212.0,67211.0,0.075707]
[1721575173452,1.16083323,67212.0,67211.0,0.075707]
[1721575173952,0.86326823,67212.0,67211.0,0.075707]
[1721575174161,0.75194688,67212.0,67211.0,0.075707]
[1721575174742,0.8632701,67212.0,67211.0,0.075707]
[1721575174951,1.1608351,67212.0,67211.0,0.075707]
[1721575175321,0.8632701,67212.0,67211.0,0.075707]
[1721575177126,0.75194688,67212.0,67211.0,0.075707]
[1721575177296,1.1701424,67212.0,67211.0,0.075707]
[1721575177882,0.76125418,67212.0,67211.0,0.075707]
[1721575178098,1.17015246,67212.0,67211.0,0.075707]
[1721575178299,0.87258745,67212.0,67211.0,0.075707]
[1721575180374,0.40397421,67212.0,67211.0,0.204407]
[1721575180587,0.21490718,67212.0,67211.0,0.204407]
[1721575182085,0.31490718,67212.0,67211.0,0.204407]
[1721575182305,0.31490718,67212.0,67211.0,0.154407]
[1721575182517,0.31490718,67212.0,67211.0,0.204407]
[1721575182735,0.30090718,67212.0,67211.0,0.204407]
[1721575182947,0.28690718,67212.0,67211.0,0.204407]
[1721575183418,0.30090718,67212.0,67211.0,0.254407]
[1721575183631,0.29159988,67212.0,67211.0,0.254407]
[1721575183846,0.20359988,67212.0,67211.0,0.700762]
[1721575184063,0.06321814,67212.0,67211.0,0.474191]
[1721575184268,0.06321814,67212.0,67211.0,0.771761]
[1721575184480,0.02321814,67212.0,67211.0,0.771761]
[1721575184693,0.02321814,67212.0,67211.0,0.474191]
[1721575184895,0.02955883,67212.0,67211.0,0.403192]
[1721575185103,0.02955883,67212.0,67211.0,0.254407]
[1721575185699,0.03714948,67212.0,67211.0,0.254407]
[1721575185927,0.04155883,67212.0,67211.0,0.254407]
[1721575186267,0.03715044,67212.0,67211.0,0.254407]
[1721575186668,0.03555883,67212.0,67211.0,0.254407]
[1721575187524,0.02155883,67212.0,67211.0,0.254407]
[1721575187848,0.03615625,67212.0,67211.0,0.254407]
[1721575190541,0.02855883,67212.0,67211.0,0.254407]
[1721575194615,0.02855883,67212.0,67211.0,0.998332]
[1721575194825,0.03621156,67212.0,67211.0,0.998332]
[1721575195034,0.02855883,67212.0,67211.0,0.998332]
[1721575195237,0.02855883,67212.0,67211.0,1.12192305]
[1721575195473,0.02855883,67212.0,67211.0,0.998332]
[1721575195667,0.02155883,67212.0,67211.0,1.62383692]
[1721575196072,0.01555883,67212.0,67211.0,1.57383692]
[1721575196524,0.02333725,67227.0,67226.0,0.392051]
[1721575196754,0.02333725,67227.0,67226.0,0.76672879]
[1721575197169,0.00084,67231.0,67230.0,0.1]
[1721575197379,0.00084,67231.0,67230.0,0.2433]
[1721575197380,0.15522174,67231.0,67230.0,0.2433]
[1721575197589,0.15522174,67231.0,67230.0,0.30509778]
[1721575197803,0.16291379,67231.0,67230.0,0.30509778]
[1721575198032,0.16291379,67231.0,67230.0,0.2433]
[1721575199179,0.17491379,67231.0,67230.0,0.2433]
[1721575199596,0.18491379,67231.0,67230.0,0.2433]
[1721575202303,0.17722174,67231.0,67230.0,0.2433]
[1721575202515,0.02284,67231.0,67230.0,0.2433]
[1721575202720,0.02284,67231.0,67230.0,0.45384068]
[1721575203776,0.01284,67231.0,67230.0,0.45384068]
[1721575204198,0.00284,67231.0,67230.0,0.2433]
[1721575204612,0.00684,67231.0,67230.0,0.2433]
[1721575204820,0.30996174,67231.0,67230.0,0.1146]
[1721575205042,0.30596174,67231.0,67230.0,0.0646]
[1721575205247,0.446262,67225.0,67224.0,1.2965]
[1721575205458,0.15438174,67225.0,67224.0,1.2965]
[1721575205662,0.60841703,67225.0,67224.0,1.2465]
[1721575205869,0.31090903,67225.0,67224.0,1.2965]
[1721575206043,0.16215503,67225.0,67224.0,1.3465]
[1721575206300,0.16215503,67225.0,67224.0,1.49537]
[1721575206301,0.16015503,67225.0,67224.0,1.49537]
[1721575207536,0.30890903,67225.0,67224.0,1.2965]
[1721575207740,0.16015503,67225.0,67224.0,1.3465]
[1721575207946,0.30991003,67225.0,67224.0,0.1]
[1721575208361,0.30991003,67225.0,67223.0,0.1]
[1721575208568,0.148756,67224.0,67223.0,0.1]
[1721575208775,0.30313774,67224.0,67223.0,0.1]
[1721575208980,0.16214934,67224.0,67223.0,0.1]
[1721575209821,0.60841734,67224.0,67223.0,0.05]
[1721575210028,0.60841734,67224.0,67223.0,0.1]
[1721575210445,0.60841734,67224.0,67223.0,0.05]
[1721575210649,0.16214934,67224.0,67223.0,0.101]
[1721575210852,0.31090534,67224.0,67223.0,0.101]
[1721575211264,0.31090534,67224.0,67223.0,0.11745]
[1721575212369,0.16214934,67224.0,67223.0,0.11745]
[1721575213840,0.31090534,67224.0,67223.0,0.11745]
[1721575214054,1.00592934,67224.0,67223.0,0.001]
[1721575214958,0.00084,67231.0,67225.0,0.1]
[1721575215172,0.00084,67231.0,67219.0,0.00297533]
[1721575215173,0.15522174,67231.0,67230.0,0.2422]
[1721575215404,0.15522174,67231.0,67230.0,0.12355278]
[1721575215607,0.15522174,67231.0,67230.0,0.05]
[1721575215608,0.25522174,67231.0,67230.0,0.05]
[1721575216040,0.25522174,67231.0,67223.0,0.05]
[1721575216252,0.25438174,67230.0,67224.0,0.05]
[1721575216458,0.25438174,67230.0,67223.0,0.1]
[1721575216661,0.014,67224.0,67223.0,0.1]
[1721575216872,0.16838174,67224.0,67223.0,0.1]
[1721575217101,0.26838174,67224.0,67223.0,0.05]
[1721575217319,0.25438174,67224.0,67223.0,0.05]
[1721575217530,0.25438174,67224.0,67223.0,0.1]
[1721575217734,0.25438174,67224.0,67215.0,0.1135]
[1721575217943,0.25438174,67224.0,67217.0,0.05]
[1721575217944,0.33148174,67223.0,67217.0,0.05]
[1721575218155,0.33148174,67223.0,67215.0,0.19067479]
[1721575218156,0.11216048,67222.0,67216.0,0.05]
[1721575218375,0.15438174,67221.0,67216.0,0.05]
[1721575218641,0.1,67220.0,67215.0,0.19067479]
[1721575218850,0.1,67220.0,67211.0,0.011207]
[1721575218851,0.15438174,67219.0,67212.0,0.0628]
[1721575219068,0.1,67218.0,67214.0,0.07717479]
[1721575219275,0.15438174,67217.0,67214.0,0.07717479]
[1721575219484,0.1,67216.0,67214.0,0.07717479]
[1721575219690,0.15438174,67215.0,67214.0,0.07717479]
[1721575219899,0.25438174,67215.0,67214.0,0.07717479]
[1721575220110,0.25438174,67215.0,67211.0,0.011207]
[1721575220111,0.39598174,67215.0,67211.0,0.011207]
[1721575220318,0.1,67214.0,67211.0,0.011207]
[1721575220540,0.15438174,67213.0,67211.0,0.011207]
[1721575220998,0.1,67212.0,67211.0,0.011207]
[1721575221239,0.25438174,67212.0,67211.0,0.011207]
[1721575224349,0.25438174,67212.0,67211.0,0.21826588]
[1721575224350,0.26338174,67212.0,67211.0,0.21826588]
[1721575224606,0.009,67212.0,67211.0,0.71462088]
[1721575224850,0.009,67212.0,67211.0,1.13578311]
[1721575225061,0.11216048,67222.0,67221.0,0.391063]
[1721575225284,0.26654222,67222.0,67221.0,0.76523002]
[1721575225904,0.26654222,67222.0,67221.0,0.61646702]
[1721575226119,0.26654222,67222.0,67221.0,1.06275602]
[1721575226344,0.11216048,67222.0,67221.0,1.16686118]
[1721575226957,0.11216048,67222.0,67221.0,0.86933518]
[1721575227408,0.21216048,67222.0,67221.0,1.16686118]
[1721575227822,0.21216048,67222.0,67221.0,0.86933518]
[1721575228034,0.21816048,67222.0,67221.0,0.87033518]
[1721575228238,0.21816048,67222.0,67221.0,0.76623002]
[1721575228707,0.22616048,67222.0,67221.0,0.76623002]
[1721575228981,0.22616048,67222.0,67221.0,1.36128202]
[1721575229194,0.014,67222.0,67221.0,1.81315759]
[1721575229416,0.06673645,67237.0,67221.0,1.81315759]
[1721575229417,0.06174,67253.0,67230.0,0.843715]
[1721575229630,0.11216048,67251.0,67250.0,0.1628]
[1721575229844,0.00084,67253.0,67250.0,1.28278423]
[1721575229845,0.01036377,67253.0,67250.0,1.28278423]
[1721575230058,0.00084,67253.0,67252.0,0.62325679]
[1721575230281,0.00084,67253.0,67252.0,1.52670772]
[1721575230531,0.00084,67253.0,67252.0,1.58950825]
[1721575230769,0.11216048,67265.0,67264.0,0.732202]
[1721575231039,0.11216048,67265.0,67264.0,1.54486562]
[1721575231625,0.00837,67284.0,67283.0,0.05]
[1721575231871,0.16275174,67284.0,67283.0,0.2631264]
[1721575232363,0.01394109,67284.0,67283.0,1.1985534]
[1721575232603,0.01394109,67284.0,67283.0,1.4958044]
[1721575232859,0.00837,67284.0,67283.0,1.1985534]
[1721575233824,0.00837,67284.0,67283.0,1.4958044]
[1721575234068,0.00837,67284.0,67283.0,1.1985534]
[1721575234520,0.01337,67284.0,67283.0,1.4958044]
[1721575234785,0.02137,67284.0,67283.0,1.4968044]
[1721575235045,0.02137,67284.0,67283.0,1.1995534]
[1721575235309,0.02137,67284.0,67283.0,1.4968044]
[1721575235551,0.11216048,67291.0,67285.0,0.545864]
[1721575235798,0.11216048,67291.0,67290.0,0.54583]
[1721575236041,0.11216048,67291.0,67290.0,1.21744479]
[1721575236279,0.00837,67292.0,67291.0,0.719224]
[1721575236487,0.00837,67299.0,67298.0,1.016362]
[1721575237462,0.00837,67299.0,67298.0,1.376347]
[1721575237724,0.00837,67299.0,67298.0,1.455847]
[1721575238006,0.00937,67299.0,67298.0,1.61619657]
[1721575238709,0.00837,67299.0,67298.0,1.460847]
[1721575238897,0.00837,67299.0,67298.0,1.455847]
[1721575239311,0.00937,67299.0,67298.0,1.171662]
[1721575239671,0.01037,67299.0,67298.0,1.177662]
[1721575239872,0.01037,67299.0,67298.0,0.95765179]
[1721575240069,0.01037,67299.0,67298.0,1.25483679]
[1721575240279,0.00937,67299.0,67298.0,1.24883679]
[1721575240687,0.00937,67299.0,67298.0,1.26283679]
[1721575240854,0.00937,67299.0,67298.0,1.41718636]
[1721575241925,0.00937,67299.0,67298.0,1.71437136]
[1721575242223,0.00937,67299.0,67298.0,1.41718636]
[1721575242774,0.00937,67299.0,67298.0,1.71437136]
[1721575243035,0.00937,67299.0,67298.0,1.41718636]
[1721575243239,0.00937,67299.0,67298.0,1.26283679]
[1721575243984,0.00937,67299.0,67298.0,1.08943679]
[1721575244628,1e-08,67299.0,67298.0,1.38662179]
[1721575244870,1e-08,67299.0,67298.0,1.08943679]
[1721575245052,1e-08,67299.0,67298.0,1.24378636]
[1721575247455,0.00075541,67308.0,67307.0,0.198572]
[1721575247801,0.00075541,67308.0,67307.0,0.248572]
[1721575248737,0.00075541,67308.0,67307.0,0.250572]
[1721575249146,0.00075541,67308.0,67307.0,0.5506882]
[1721575249369,0.00075541,67308.0,67307.0,0.8742884]
[1721575249820,0.00075541,67308.0,67307.0,0.8782884]
[1721575250234,0.00075541,67308.0,67307.0,1.1754334]
[1721575250444,0.002,67319.0,67307.0,1.1754334]
[1721575250445,0.002,67319.0,67308.0,0.842852]
[1721575250675,0.002,67319.0,67308.0,1.2460381]
[1721575250882,0.002,67319.0,67308.0,1.6704791]
[1721575251082,0.002,67319.0,67318.0,0.842742]
[1721575251287,0.002,67319.0,67318.0,1.21701379]
[1721575251485,0.002,67319.0,67318.0,1.24171325]
[1721575251939,0.002,67319.0,67318.0,1.30311325]
[1721575252352,0.002,67319.0,67318.0,0.68421979]
[1721575252561,0.002,67319.0,67318.0,0.62281979]
[1721575253857,0.002,67319.0,67318.0,0.22538368]
[1721575254074,0.002,67319.0,67318.0,0.17538368]
[1721575254578,0.15638174,67319.0,67318.0,0.12538368]
[1721575254789,0.15638174,67319.0,67318.0,0.002]
[1721575254790,0.16207584,67319.0,67318.0,0.002]
[1721575254987,0.26307584,67319.0,67318.0,0.011]
[1721575255191,0.41062184,67319.0,67318.0,0.12540396]
[1721575255436,0.26207584,67319.0,67318.0,0.12540396]
[1721575255851,0.41062184,67319.0,67318.0,0.12540396]
[1721575256028,0.41062184,67319.0,67318.0,0.12540173]
[1721575256353,0.71471384,67319.0,67318.0,0.12440173]
[1721575256499,1.01180584,67319.0,67318.0,0.12440173]
[1721575257342,1.01480584,67319.0,67318.0,0.12440173]
[1721575257778,0.71471384,67319.0,67318.0,0.12440173]
[1721575258196,0.7177661,67319.0,67318.0,0.36149418]
[1721575258836,0.7107661,67319.0,67318.0,0.36049418]
[1721575259243,0.7167661,67319.0,67318.0,0.30951985]
[1721575259442,0.4196741,67319.0,67318.0,0.30851985]
[1721575259819,0.7167661,67319.0,67318.0,0.30851985]
[1721575260341,0.7227661,67319.0,67318.0,0.30951985]
[1721575261306,0.7077661,67319.0,67318.0,0.30851985]
[1721575261518,0.148551,67317.0,67311.0,0.1]
[1721575261723,0.25717574,67316.0,67312.0,0.30852753]
[1721575261927,0.40586377,67316.0,67313.0,0.30852753]
[1721575262145,0.40586377,67316.0,67311.0,0.05]
[1721575262146,0.148555,67315.0,67314.0,0.30852753]
[1721575262347,0.25438174,67315.0,67314.0,0.30852753]
[1721575262552,0.25451559,67315.0,67314.0,0.30852753]
[1721575263581,0.25451559,67315.0,67314.0,0.35852753]
[1721575263981,0.25751559,67315.0,67314.0,0.35952753]
[1721575264370,0.26308419,67315.0,67314.0,0.35952753]
[1721575264600,0.10870245,67315.0,67314.0,0.66522291]
[1721575264809,0.003,67315.0,67314.0,0.66522291]
[1721575265029,0.103,67315.0,67314.0,0.96233791]
[1721575265202,0.003,67315.0,67314.0,1.25945291]
[1721575265404,0.012,67315.0,67314.0,1.26045291]
[1721575265609,0.009,67315.0,67314.0,1.26045291]
[1721575266031,0.00284,67319.0,67318.0,0.545645]
[1721575266233,0.00284,67319.0,67318.0,0.69082063]
[1721575266476,0.00284,67319.0,67318.0,0.98791763]
[1721575266731,0.00284,67319.0,67318.0,0.40851316]
[1721575266914,0.30576774,67319.0,67318.0,0.30851316]
[1721575267155,0.60285974,67319.0,67318.0,0.30851316]
[1721575267359,0.99995174,67319.0,67318.0,0.30851316]
[1721575267794,0.70285974,67319.0,67318.0,0.30853168]
[1721575267971,1.29704374,67319.0,67318.0,0.30853168]
[1721575268393,1.37524374,67319.0,67318.0,0.30853168]
[1721575268805,1.38024374,67319.0,67318.0,0.30953168]
[1721575269013,1.38971902,67319.0,67318.0,0.30953168]
[1721575269213,1.38971902,67319.0,67318.0,0.30853168]
[1721575269410,1.38971902,67319.0,67318.0,0.12341267]
[1721575269618,1.45391902,67319.0,67318.0,0.30856161]
[1721575269841,1.45291902,67319.0,67318.0,0.30956161]
[1721575270043,1.45291902,67319.0,67318.0,0.12441267]
[1721575270421,1.60726859,67319.0,67318.0,0.12541267]
[1721575270630,2.06106059,67319.0,67318.0,0.03409842]
[1721575270837,2.06106059,67319.0,67318.0,0.002]
[1721575271037,2.06106059,67319.0,67304.0,0.05202993]
[1721575271038,0.1424,67310.0,67304.0,0.05202993]
[1721575271215,0.297159,67304.0,67297.0,0.35682679]
[1721575271414,0.148586,67301.0,67299.0,0.18516199]
[1721575271617,0.25438174,67300.0,67297.0,0.35682679]
[1721575271961,0.25438174,67300.0,67299.0,0.18515993]
[1721575272205,0.25338174,67300.0,67299.0,0.18515993]
[1721575272591,0.69914574,67300.0,67299.0,0.18515993]
[1721575273001,0.69914574,67300.0,67299.0,0.2372038]
[1721575273204,0.70014574,67300.0,67299.0,0.20415993]
[1721575273406,0.70014574,67300.0,67299.0,0.19515993]
[1721575273610,0.70014574,67300.0,67299.0,0.01]
[1721575274298,0.99732174,67300.0,67299.0,0.01]
[1721575274892,0.99832174,67300.0,67299.0,0.019]
[1721575275097,1.29549774,67300.0,67299.0,0.019]
[1721575275298,1.43789774,67300.0,67299.0,0.019]
[1721575275498,1.14072174,67300.0,67299.0,0.019]
[1721575275861,1.14072174,67300.0,67299.0,0.009]
[1721575276322,1.14072174,67300.0,67298.0,0.000924]
[1721575276323,0.14859,67299.0,67298.0,0.000924]
[1721575276525,0.25438174,67299.0,67298.0,0.000924]
[1721575277581,0.25438174,67299.0,67298.0,0.117024]
[1721575277920,0.25438174,67299.0,67298.0,0.167024]
[1721575278122,0.583569,67309.0,67308.0,0.05]
[1721575278123,0.435,67309.0,67308.0,0.05]
[1721575278321,0.15438174,67309.0,67308.0,0.1]
[1721575278669,0.00553138,67309.0,67308.0,0.94416746]
[1721575278870,0.00935038,67316.0,67312.0,0.148561]
[1721575279092,0.00935038,67316.0,67315.0,0.1]
[1721575279093,0.16373212,67316.0,67315.0,0.1]
[1721575279302,0.00284,67319.0,67318.0,0.1]
[1721575279482,0.00284,67319.0,67318.0,0.40853857]
[1721575279929,0.00284,67319.0,67318.0,0.35853857]
[1721575280298,0.00284,67319.0,67318.0,0.35849723]
[1721575281519,0.17276963,67319.0,67318.0,0.35849723]
[1721575281721,0.17776963,67319.0,67318.0,0.35949723]
[1721575282174,0.17276963,67319.0,67318.0,0.41048141]
[1721575282495,0.17276963,67319.0,67318.0,0.41248141]
[1721575282716,0.17276963,67319.0,67318.0,0.36248141]
[1721575282916,0.84821259,67319.0,67318.0,0.12639889]
[1721575283185,1.24530459,67319.0,67318.0,0.12639889]
[1721575283386,1.24530459,67319.0,67318.0,0.12641228]
[1721575283387,1.15799963,67319.0,67318.0,0.12641228]
[1721575284214,1.15799963,67319.0,67318.0,0.002]
[1721575284630,0.148556,67315.0,67313.0,1.2465]
[1721575284815,0.15438174,67314.0,67313.0,1.2465]
[1721575285064,0.15438174,67314.0,67313.0,1.36991774]
[1721575285270,0.25438174,67314.0,67313.0,0.12341774]
[1721575285473,0.40293874,67314.0,67313.0,0.12341774]
[1721575285599,0.25438174,67314.0,67313.0,0.12341774]
[1721575286215,0.25438174,67314.0,67312.0,0.05]
[1721575286627,0.25438174,67314.0,67313.0,0.12341252]
[1721575287202,0.25438174,67314.0,67312.0,0.05]
[1721575287682,0.25438174,67314.0,67313.0,0.26817479]
[1721575287902,0.25438174,67314.0,67313.0,0.44258356]
[1721575288105,0.1,67314.0,67313.0,0.59114256]
[1721575288300,0.02754543,67319.0,67318.0,0.1]
[1721575288536,0.01838789,67319.0,67318.0,0.1]
[1721575288764,0.01838789,67319.0,67318.0,0.1626]
[1721575288954,0.01838789,67319.0,67318.0,0.311148]
[1721575289520,0.02138789,67319.0,67318.0,0.311148]
[1721575289921,0.02138789,67319.0,67318.0,0.608245]
[1721575290369,0.02138789,67319.0,67318.0,0.905342]
[1721575290585,0.02138789,67319.0,67318.0,0.608245]
[1721575290791,0.02638789,67319.0,67318.0,0.608245]
[1721575290956,0.02638789,67319.0,67318.0,1.09415508]
[1721575290957,0.02338789,67319.0,67318.0,1.09415508]
[1721575291362,0.02438789,67319.0,67318.0,1.09415508]
[1721575291563,0.01838789,67319.0,67318.0,1.09415508]
[1721575291958,0.01938789,67319.0,67318.0,0.988042]
[1721575292161,0.01838789,67319.0,67318.0,0.989042]
[1721575294198,0.01838789,67319.0,67318.0,0.991042]
[1721575294636,0.01838789,67319.0,67318.0,0.990042]
[1721575294847,0.01838789,67319.0,67318.0,0.2473]
[1721575295132,0.01838789,67319.0,67318.0,0.398848]
[1721575295335,0.01838789,67319.0,67318.0,0.695945]
[1721575295500,0.01838789,67319.0,67318.0,0.993042]
[1721575295650,0.01838789,67319.0,67318.0,0.990042]
[1721575296461,0.01838789,67319.0,67318.0,0.692945]
[1721575296671,0.01838789,67319.0,67318.0,0.395848]
[1721575296880,0.01838789,67319.0,67318.0,0.692945]
[1721575297083,0.01838789,67319.0,67318.0,1.287139]
[1721575297584,0.00284,67319.0,67318.0,1.285139]
[1721575297823,0.00284,67319.0,67318.0,0.988042]
[1721575298060,0.00384,67319.0,67318.0,1.285139]
[1721575298260,0.00384,67319.0,67318.0,1.43948857]
[1721575298571,0.00284,67319.0,67318.0,1.58586367]
[1721575298930,0.00284,67319.0,67318.0,1.5898596]
[1721575299144,0.00284,67319.0,67318.0,1.5858596]
[1721575299947,0.00284,67319.0,67318.0,1.88395672]
[1721575300172,0.00284,67319.0,67318.0,1.44151015]
[1721575300378,0.00284,67319.0,67318.0,1.61451015]
[1721575301199,0.00284,67319.0,67318.0,1.62251015]
[1721575301857,0.00284,67319.0,67318.0,1.12941315]
[1721575302056,0.00284,67319.0,67318.0,1.006042]
[1721575303266,0.00284,67319.0,67318.0,1.16039157]
[1721575303807,0.00284,67319.0,67318.0,1.006042]
[1721575304731,0.00284,67319.0,67318.0,1.303139]
[1721575304940,0.00284,67319.0,67318.0,1.006042]
[1721575305207,0.00284,67319.0,67318.0,1.42651306]
[1721575306173,0.00284,67319.0,67318.0,1.59951306]
[1721575306381,0.00284,67319.0,67318.0,1.62251306]
[1721575307165,0.00184,67319.0,67318.0,1.62251306]
[1721575308413,0.00184,67319.0,67318.0,1.499139]
[1721575308614,0.00184,67319.0,67318.0,1.6225124]
[1721575309921,0.00184,67319.0,67318.0,1.1524154]
[1721575310121,0.00184,67319.0,67318.0,1.1294154]
[1721575310331,0.00184,67319.0,67318.0,0.2413734]
[1721575310537,0.00184,67319.0,67318.0,0.118]
[1721575311580,0.00184,67319.0,67318.0,0.402998]
[1721575311783,0.00184,67319.0,67318.0,0.92636979]
[1721575311963,0.00184,67319.0,67318.0,1.34684586]
[1721575312200,0.00184,67319.0,67318.0,1.36984586]
[1721575312399,0.00184,67319.0,67318.0,1.66694286]
[1721575314424,0.00184,67319.0,67318.0,2.01403986]
[1721575314658,0.00184,67319.0,67318.0,2.01402593]
[1721575315443,0.00184,67319.0,67318.0,2.21840767]
[1721575316188,0.00184,67319.0,67318.0,2.21740767]
[1721575316366,0.00184,67319.0,67318.0,2.44538509]
[1721575316566,0.00184,67319.0,67318.0,2.45938509]
[1721575316972,0.00184,67319.0,67318.0,2.41345311]
[1721575317209,0.00184,67319.0,67318.0,2.39944616]
[1721575317730,0.00184,67319.0,67318.0,2.09104253]
[1721575317929,0.00184,67319.0,67318.0,2.39944719]
[1721575318186,0.00184,67319.0,67318.0,2.38544719]
[1721575318391,0.00184,67319.0,67318.0,2.39944719]
[1721575319641,0.00184,67319.0,67318.0,2.41344719]
[1721575319843,0.00184,67319.0,67318.0,2.41344688]
[1721575320934,0.00184,67319.0,67318.0,2.41344646]
[1721575321649,0.00184,67319.0,67318.0,2.71054346]
[1721575321864,0.00837,67321.0,67320.0,0.2778]
[1721575322089,0.00837,67321.0,67320.0,1.40025792]
[1721575322296,0.00837,67321.0,67320.0,2.44822192]
[1721575322501,0.00837,67321.0,67320.0,2.74530992]
[1721575323122,0.00837,67321.0,67320.0,2.75930992]
[1721575323332,0.00837,67321.0,67320.0,3.15930992]
[1721575323767,0.00837,67321.0,67320.0,2.8592522]
[1721575323988,0.00837,67321.0,67320.0,2.70894128]
[1721575324189,0.00837,67321.0,67320.0,2.6665522]
[1721575324393,0.00837,67321.0,67320.0,2.2165522]
[1721575324602,0.00837,67321.0,67320.0,2.1935522]
[1721575324813,0.00837,67321.0,67320.0,2.2435522]
[1721575325017,0.00837,67321.0,67320.0,2.2935522]
[1721575325865,0.00837,67321.0,67320.0,2.3165522]
[1721575326276,0.00837,67321.0,67320.0,2.7165522]
[1721575326484,0.00837,67321.0,67320.0,2.71651673]
[1721575326706,0.00837,67321.0,67320.0,2.71651425]
[1721575327336,0.00837,67321.0,67320.0,3.17030225]
[1721575327753,0.00837,67321.0,67320.0,2.71651425]
[1721575327987,0.00837,67321.0,67320.0,2.87321425]
[1721575328373,0.00837,67321.0,67320.0,2.47321425]
[1721575329057,0.00837,67321.0,67320.0,2.31651425]
[1721575329698,0.00837,67321.0,67320.0,2.31652133]
[1721575330113,0.00837,67321.0,67320.0,2.31651685]
[1721575330335,0.00837,67321.0,67320.0,2.71651685]
[1721575330534,0.00837,67321.0,67320.0,2.76085627]
[1721575332063,0.00837,67321.0,67320.0,2.76085761]
[1721575332713,0.00837,67321.0,67320.0,2.45251335]
[1721575332920,0.00837,67321.0,67320.0,2.71651007]
[1721575333091,0.00837,67321.0,67320.0,2.31651007]
[1721575334475,0.00837,67321.0,67320.0,2.71651007]
[1721575335940,0.00837,67321.0,67320.0,2.40814827]
[1721575336154,0.00837,67321.0,67320.0,2.71652257]
[1721575336780,0.00837,67321.0,67320.0,2.31943457]
[1721575336987,0.00837,67321.0,67320.0,1.8991823]
[1721575337191,0.00837,67321.0,67320.0,1.4991823]
[1721575337395,0.00837,67321.0,67320.0,1.31415772]
[1721575338232,0.00837,67321.0,67320.0,1.01706972]
[1721575338645,0.00837,67321.0,67320.0,0.99406972]
[1721575339157,0.00837,67321.0,67320.0,0.96608865]
[1721575339545,0.00837,67321.0,67320.0,1.27917665]
[1721575339750,0.00837,67321.0,67320.0,1.42552622]
[1721575339946,0.00837,67321.0,67320.0,1.27117665]
[1721575340152,0.00837,67321.0,67320.0,1.27917665]
[1721575340609,0.00837,67321.0,67320.0,1.89724639]
[1721575340826,0.00837,67321.0,67320.0,2.17378303]
[1721575341270,0.00837,67321.0,67320.0,2.65187103]
[1721575341480,0.00837,67321.0,67320.0,2.6332206]
[1721575341693,0.00837,67321.0,67320.0,2.6252206]
[1721575342103,0.00837,67321.0,67320.0,2.33081531]
[1721575342310,0.00837,67326.0,67325.0,1.597197]
[1721575342513,0.00837,67326.0,67325.0,2.34868589]